Cogmind - Beta 9.5 @@@ ROGUE MODE // 2020.04.07 @ 20:14:44 Player: V_ Result: Destroyed by G-34 Mercenary with Small Laser Performance ------------- Evolutions (1) 500 Regions Visited (2) 400 Robots Destroyed (21) 105 Value Destroyed (267) 267 Prototype IDs (0) 0 Alien Tech Used (0) 0 Bonus (0) 0 TOTAL SCORE: 1272 Bonus ------- None Cogmind --------- Core Integrity 0/400 Matter 298/300 Energy 100/100 System Corruption 1% Temperature Cool (6) Movement Core (300) Ox5 Location -9/Materials Parts ------- > --- POWER (1) -------- (None) > --- PROPULSION (2) --- (None) > --- UTILITY (3) ------ Large Storage Unit Seismic Analyzer > --- WEAPON (3) ------- (None) > --- INVENTORY (10) --- Ion Engine Field Recycling Unit (0) Peak State ------------ > --- POWER ------------ Ion Engine > --- PROPULSION ------- Aluminum Leg Aluminum Leg > --- UTILITY ---------- Large Storage Unit Improved Terrain Scanner Seismic Analyzer > --- WEAPON ----------- Small Laser Grenade Launcher > --- INVENTORY -------- Ion Engine [Rating: 9] Favorites ----------- Power Ion Engine Engine Ion Engine Propulsion Aluminum Leg Leg Aluminum Leg Utility Seismic Analyzer Device Improved Terrain Scanner Storage Large Storage Unit Processor Seismic Analyzer Weapon Small Laser Energy Gun Small Laser Ballistic Gun Light Assault Rifle Launcher Grenade Launcher Special Melee Weapon Datajack Build | -11 -10 -9 ------- Run | Scr Mat Mat Slots Evolved 2 | . . 2 Power . | . . . Propulsion . | . . . Utility 1 | . . 1 Weapon 1 | . . 1 Parts Attached 13 | 8 1 4 Power 1 | 1 . . Engine 1 | 1 . . Core . | . . . Reactor . | . . . Propulsion 2 | 2 . . Treads . | . . . Leg 2 | 2 . . Wheel . | . . . Hover . | . . . Flight . | . . . Utility 6 | 3 . 3 Device 3 | 1 . 2 Storage 2 | 1 . 1 Processor 1 | 1 . . Hackware . | . . . Protection . | . . . Artifact . | . . . Weapon 4 | 2 1 1 Energy Gun 1 | 1 . . Energy Cannon . | . . . Ballistic Gun 1 | 1 . . Ballistic Cannon . | . . . Launcher 1 | . . 1 Special Weapon . | . . . Impact Weapon . | . . . Slashing Weapon . | . . . Piercing Weapon . | . . . Special Melee Weapon 1 | . 1 . Unidentified Prototypes . | . . . Parts Lost 7 | . 1 6 Power 1 | . . 1 Propulsion 2 | . . 2 Utility 1 | . . 1 Weapon 3 | . 1 2 Highest Loss Streak 6 | . 1 6 Average Slot Usage (%) 89 | . 98 76 Engine 12 | . 14 9 Leg 24 | . 28 18 Device 11 | . 14 8 Storage 4 | . . 11 Processor 12 | . 14 11 Energy Gun 11 | . 14 7 Ballistic Gun 7 | . 12 . Launcher 3 | . . 8 Naked Turns . | . . . Heaviest Build 26 | 11 8 26 Greatest Support 20 | 20 20 20 Greatest Overweight (x) 5 | . . 5 Average Overweight (x) . | . . 1 Largest Inventory Capacity 10 | 6 4 10 Average Capacity 5 | 4 4 10 Most Carried 4 | 4 4 3 Average Carried 2 | 2 3 1 Final Capacity 10 | 4 4 10 Final Carried 4 | 4 3 2 Class Distribution -------------------- 100% | Mutant Dominant Class ---------------- Mutant | -10/Materials Mutant | -9/Materials Resources | -11 -10 -9 ----------- Run | Scr Mat Mat Matter Collected 361 | 296 27 38 Remotely . | . . . Salvage Created 552 | 270 218 64 Parts 35 | 20 12 3 Haulers Intercepted . | . . . Recyclers Shooed 2 | 1 1 . Parts Field Recycled . | . . . Retrieved Matter . | . . . Parts Self-Destructed . | . . . Prevented . | . . . Kills | -11 -10 -9 ------- Run | Scr Mat Mat Combat Hostiles Destroyed 8 | . 3 5 Guns 4 | . 3 1 AOE 4 | . . 4 Classes Destroyed 6 | 3 2 1 Worker 5 | 4 1 . Builder 1 | . 1 . Tunneler 5 | 5 . . Recycler 2 | 1 1 . Swarmer 3 | . . 3 Grunt 5 | . 3 2 Best Kill Streak 5 | 3 4 5 Combat Bots Only 5 | . 2 5 Max Kills in Single Turn 3 | 1 1 3 Gunslinging . | . . . Exploded 3 | . . 3 Melee . | . . . Uniques/NPCs Destroyed . | . . . Combat | -11 -10 -9 -------- Run | Scr Mat Mat Damage Taken 988 | . 185 803 Core 430 | . 22 408 Absorbed by Shields . | . . . Core Remaining (%) 95 | 100 91 . Volleys Fired 52 | 26 22 4 Largest 2 | 2 2 2 Hottest 70 | 60 60 70 Shots Fired 89 | 51 33 5 Gun 85 | 51 33 1 Cannon . | . . . Launcher 4 | . . 4 Special . | . . . Kinetic 38 | 26 12 . Thermal 47 | 25 21 1 Explosive 4 | . . 4 Electromagnetic . | . . . Robot Hit Streak 7 | 6 6 7 Robot Miss Streak 6 | 3 6 1 Penetration Max . | . . . Secondary Targets . | . . . Shots Hit Robots 45 | 30 13 2 Core Hits 36 | 14 12 10 Critical Hits . | . . . Critical Kills . | . . . Critical Parts Destroyed . | . . . Melee Attacks . | . . . Impact . | . . . Slashing . | . . . Piercing . | . . . Sneak Attacks . | . . . Combat Hostiles . | . . . Follow-up Attacks . | . . . Damage Inflicted 754 | 267 198 289 Guns 474 | 267 195 12 Cannons . | . . . Explosions 273 | . . 273 Melee . | . . . Ramming 7 | . 3 4 Kinetic 114 | 85 29 . Thermal 360 | 182 166 12 Explosive 273 | . . 273 Electromagnetic . | . . . Impact . | . . . Slashing . | . . . Piercing . | . . . Highest Corruption 1 | . . 1 Average Corruption 1 | . . 1 Corruption Purged . | . . . Overload Shots . | . . . Overflow Damage . | . . . Projectiles . | . . . Explosions . | . . . Melee . | . . . Knockbacks . | . . . Impact . | . . . Kinetic . | . . . Secondary . | . . . Self-Inflicted Damage 40 | . . 40 Shots 1 | . . 1 Rammed 4 | . . 4 Targets Rammed 5 | . 1 4 Kicked 1 | . 1 . Crushed . | . . . Highest Temperature 66 | 40 66 4 Average Temperature 22 | 19 27 4 Received Heat Transfer 474 | . 102 372 Siege Activations . | . . . Robots Corrupted . | . . . Combat Hostiles . | . . . Parts Fried . | . . . Impact Corruptions . | . . . Robots Melted . | . . . Combat Hostiles . | . . . Parts Melted . | . . . Heat Transferred 825 | 425 375 25 Parts Sabotaged . | . . . Parts Stolen . | . . . Parts Stripped . | . . . Power Chain Reactions . | . . . Missiles Intercepted . | . . . Alert | -11 -10 -9 ------- Run | Scr Mat Mat Peak Influence 152 | 50 57 152 Average Influence 33 | 18 32 51 Maximum Alert Level . | . . . Low Security (%) 100 | 100 100 100 Level 1 . | . . . Level 2 . | . . . Level 3 . | . . . Level 4 . | . . . Level 5 . | . . . High Security . | . . . Max Security . | . . . Squads Dispatched 3 | . 1 2 Investigation 1 | . 1 . Extermination . | . . . Reinforcement 2 | . . 2 Assault . | . . . Garrison . | . . . Intercept . | . . . Construction Impeded 1 | . . 1 Haulers Reinforced . | . . . Stealth | -11 -10 -9 --------- Run | Scr Mat Mat Distress Signals 2 | . 1 1 Communications Jammed . | . . . Distress Signals . | . . . Times Spotted 17 | . 5 12 Peak Tracking Total 4 | . 2 4 Tactical Retreats 2 | . 1 1 Traps | -11 -10 -9 ------- Run | Scr Mat Mat Traps Triggered 2 | . 1 1 Indirectly . | . . . Trap Hack Attempts . | . . . Triggered . | . . . Disarmed . | . . . Reprogrammed . | . . . Reused . | . . . Traps Extracted . | . . . Installed . | . . . Triggered . | . . . Machines | -11 -10 -9 ---------- Run | Scr Mat Mat Machines Disabled 1 | . . 1 Max in Single Turn 1 | . . 1 Machines Sabotaged . | . . . Garrisons Compromised . | . . . Overloaded Fab Kills . | . . . Fab Network Shutdowns . | . . . Hacking | -11 -10 -9 --------- Run | Scr Mat Mat Machines Accessed . | . . . Terminals . | . . . Fabricators . | . . . Repair Stations . | . . . Recycling Units . | . . . Scanalyzers . | . . . Garrison Access . | . . . Total Hacks . | . . . Successful . | . . . Failed . | . . . Catastrophic . | . . . Database Lockouts . | . . . Manual . | . . . Terminals . | . . . Fabricators . | . . . Repair Stations . | . . . Recycling Units . | . . . Scanalyzers . | . . . Garrison Access . | . . . Terminal Hacks . | . . . Fabricator Hacks . | . . . Repair Station Hacks . | . . . Recycling Unit Hacks . | . . . Scanalyzer . | . . . Garrison Access Hacks . | . . . Unauthorized Hacks . | . . . Terminals . | . . . Fabricators . | . . . Repair Stations . | . . . Recycling Units . | . . . Scanalyzers . | . . . Garrison Access . | . . . Data Cores Recovered . | . . . Used . | . . . Hacking Detections . | . . . Full Trace Events . | . . . Feedback Events . | . . . Feedback Blocked . | . . . Robot Schematics Acquired . | . . . Robots Built . | . . . Matter . | . . . Time . | . . . Total Robot Build Rating . | . . . Part Schematics Acquired . | . . . Parts Built . | . . . Matter . | . . . Time . | . . . Total Part Build Rating . | . . . Parts Repaired . | . . . Time . | . . . Parts Recycled . | . . . Recycled Matter . | . . . Retrieved Matter . | . . . Retrieved Components . | . . . Parts Scanalyzed . | . . . Part Schematics Acquired . | . . . Parts Damaged . | . . . Bothacking | -11 -10 -9 ------------ Run | Scr Mat Mat Used RIF Installer . | . . . Robots Hacked . | . . . Non-combat . | . . . Combat . | . . . Robot Hacks Applied . | . . . Relay Couplers Released . | . . . Robots Rewired . | . . . Allies Hacked . | . . . Hacks Repelled . | . . . Allies | -11 -10 -9 -------- Run | Scr Mat Mat Total Allies . | . . . Largest Group . | . . . Highest-Rated Group . | . . . Highest-Rated Ally . | . . . Total Orders . | . . . Ally Attacks . | . . . Total Damage . | . . . Kills . | . . . Allies Corrupted . | . . . Allies Melted . | . . . Intel | -11 -10 -9 ------- Run | Scr Mat Mat Robot Analysis Total . | . . . Derelict Logs Recovered . | . . . Drone Launches . | . . . Drone Recoveries . | . . . Exploration | -11 -10 -9 ------------- Run | Scr Mat Mat Turns Passed 1137 | 336 476 325 Spaces Moved 675 | 209 323 143 Core 19 | 9 . 10 Treads . | . . . Legs 656 | 200 323 133 Wheels . | . . . Hover . | . . . Flight . | . . . Fastest Speed 50 | 50 120 150 Average Speed 127 | 116 120 161 Slowest Speed 300 | 120 120 300 Overloaded Moves . | . . . Propulsion Burnouts . | . . . Robots Hopped . | . . . Cave-ins Triggered . | . . . Exploration Rate (%) 19 | 10 36 12 Regions Visited 2 Branch Regions . Pre-discovered Areas . | . . . Known Exits Taken . | . . . Unknown Exits Taken 2 | 1 1 . Scrap Searched . | . . . Spaces Dug . | . . . Terrain Destroyed 14 | . . 14 Melee . | . . . Projectile . | . . . AOE 14 | . . 14 Actions | -11 -10 -9 --------- Run | Scr Mat Mat Total 865 | 255 383 227 Wait 95 | . 26 69 Move 673 | 208 322 143 Hop . | . . . Pick Up 18 | 12 5 1 Fast Attach . | . . . Attach 13 | 8 1 4 Detach 2 | . . 2 Swap . | . . . Drop 7 | 1 6 . Fire 52 | 26 22 4 Melee . | . . . Ram 4 | . . 4 Kick 1 | . 1 . Crush . | . . . Escape Stasis . | . . . Rewire . | . . . Trap . | . . . Miscellaneous . | . . . Route ------- -11/Scrapyard -10/Materials -9/Materials History --------- Turn | Location | Event 4 | -11/Scrapyard | Discovered new exit (range 16) 337 | -11/Scrapyard | Entered Materials 338 | -10/Materials | Build established: Mutant 431 | -10/Materials | Discovered new exit (range 16) 813 | -10/Materials | Entered another Materials area 813 | -9/Materials | Evolved 2 slots: Utility x1, Weapon x1 1120 | -9/Materials | Core integrity fell below 50% 1128 | -9/Materials | Core integrity fell below 20% 1129 | -9/Materials | Lost 6 parts (1p2n1u2w) 1138 | -9/Materials | Destroyed by G-34 Mercenary with Small Laser Last Messages --------------- R-06 Scavenger collects Lgt. Ion Engine. K-01 Serf collects debris. U-05 Engineer lays Concrete. R-06 Scavenger collects Wheel. U-05 Engineer lays Concrete. R-06 Scavenger collects Terrain Scan Processor. U-05 Engineer lays Concrete. R-06 Scavenger collects Terrain Scanner. U-05 Engineer lays Concrete. R-06 Scavenger collects Structural Scanner. U-05 Engineer lays Concrete. Slammed into G-34 Mercenary. U-05 Engineer lays Concrete. Slammed into G-34 Mercenary. U-05 Engineer lays Concrete. Slammed into G-34 Mercenary. Destabilizing: Core damaged (-20). K-01 Serf collects debris. U-05 Engineer lays Concrete. Slammed into G-34 Mercenary. Map ----- +----------------------------------------------------+ | ?????????????????????????????????????????????????? | | ?????????????????????????????????????????????????? | | ?????????????????????????????????????????????????? | | ?????????????????????????????????????????????????? | | ?????????????????????????????????????????????????? | | ?????????????????????????????????????????????????? | | ?????????????????????????????????????????????????? | | ?????????????????????????????????????????????????? | | ?????????????????????????????????????????????????? | | ?????????????????????? ??????????????????????????? | | ?????????????????? "T ??????????????????????????? | | ??????????????????? ??????????????????????????? | | ??????????????????? ??????#???????????????????? | | ??????????????????## ?#?##?????????????????????? | | ???????????????????# #??????#??????????????????? | | ???????????????????# #????#??#? ???????????????? | | ?????????????#?#?#?# #????????? ???????????????? | | ?????????????#?????# ##??#????# ???????????????? | | ?????????????##????# #???##?????? ??#??????????? | | ???????????????????# #??#??????????????????????? | | ??????????#?##?#???# #??#?????? ?????#????????? | | ????????????????##?# ##??#?????????????????????? | | ?????????????????### #?#????#???????#??????????? | | ??????????#????###?# ##??##?#?#????#???#???????? | | ????????##?????##### u###########???????????????? | | ?????? ??##?#?#?## # @ ###?????????????? | | ??????? #????#?## ## # ""##??#?????#?????? | | ?????? ??###?#?## # gg T"#???????????????? | | ???? ? ?##???#?# #% g ""#?#?#???##??????? | | ???? ?? ??????#?# + " g #???#??#????????? | | ??????? ????#?#?## # " ##?#????????????? | | ?????#???#??#?#??# # " ####????????????? | | ????????########### ## #??#????????????? | | ??#????### # ##############???#?????????? | | ????#? ??# """ # ##??##?##??##???#??????????? | | ?????# ??# """ # ##??###??#?????#???????????? | | ????#??#?# """ # #????######?##??#??????????? | | ? #????### # #??#???##???#???#??????????? | | ???#?#??## """ + ###?#####?#?##??#??????????? | | ???#?????# """ # ###?#?########?????????????? | | ?????????# """ # ##??##?#####??#????????????? | | ??????? ?# # ###########??#?????????????? | | ???????" ########## # #???##?#?????????? | | ?????????##?####### # ! ###?#????????????? | | ??? ???????##?##??# # #????????????????? | | ???? "???###?####?# # ##????#???#??????? | | ??????"??#??##??#?# # """ """ #???#?#??????????? | | ??????????##????#?# # """ """ ##???###?????????? | | ?????? ? ??##??#### # """ """ #####?##?????????? | | ??????? ###??##!! + ##??##???????????? | +----------------------------------------------------+ Best States ------------- Heat Dissipation 28 Energy Generation 10 Energy Capacity 250 Matter Stores 300 Matter Capacity 300 Sight Range 16 Terrain Scan Range 16 Terrain Scan Density 60 Evasion (%) 40 Item Schematics ----------------- None Robot Schematics ------------------ None Fabricated ------------ Nothing Alien Tech Used ----------------- None Achievements -------------- None Challenges ------------ None Game ------ Seed HardlightFluxExpander Manual? 0 Play Time 00:12:11 Cumulative 1.3 hours Start 2020.04.07 @ 20:04:47 End 2020.04.07 @ 20:14:44 Sessions 1 Manual Loads 0 Difficulty Rogue Special Mode None Game No. 6 Rogue 6 Adventurer 0 Explorer 0 Win Type - Total 0 Types 0/0/0/0/0/0/0 Lore% 1 Gallery% 4 Achievement% 4 Wizard Run 0 Options --------- ASCII 0 Keyboard 1 Movement Arrows Keybinds 0 Fullscreen 1 Font 24/Smallcaps Map View 76x50 Tactical HUD 0 Map Filters NONE Filters NONE Steam 1 RUN: c327f863-3c43-4c66-be92-0ec50ebc7139